bitfinex-derivatives/quotes_ETHF0:USTF0_20250702
["timestamp","ask_amount","ask_price","bid_price","bid_amount"]
[1751421859144,0.82783,2415.6,2415.5,5.47889966]
[1751421859349,0.82786,2415.5,2415.4,5.29317965]
[1751421859551,0.82786,2415.5,2415.4,0.6658]
[1751421859849,0.9421885,2415.5,2415.4,0.6658]
[1751421860038,0.82793,2415.3,2415.2,45.42737965]
[1751421860549,0.82793,2415.3,2415.2,4.62737965]
[1751421860745,0.9422585,2415.3,2415.2,4.62737965]
[1751421861141,0.82796,2415.2,2415.1,42.2212]
[1751421861447,0.95707756,2415.2,2415.1,40.8]
[1751421861647,0.828,2415.1,2415.0,5.31787965]
[1751421861842,0.828,2415.1,2415.0,6.68587965]
[1751421862251,0.82803,2415.0,2414.9,40.8]
[1751421862647,0.82807,2414.9,2414.8,4.62737965]
[1751421862946,0.82817,2414.6,2414.5,1.368]
[1751421863146,0.82817,2414.6,2414.5,46.79537965]
[1751421863342,0.82817,2414.6,2414.5,4.62737965]
[1751421863541,0.82817,2414.6,2414.5,5.99537965]
[1751421863741,0.99922453,2414.6,2414.5,5.99537965]
[1751421863939,0.99922453,2414.6,2414.5,46.79537965]
[1751421864744,0.17105453,2414.6,2414.3,4.62737965]
[1751421864949,0.82824,2414.4,2414.3,4.62737965]
[1751421865144,0.82824,2414.4,2414.3,45.42737965]
[1751421865344,0.82831,2414.2,2414.1,5.34747965]
[1751421865744,0.99936453,2414.2,2414.1,5.34747965]
[1751421866053,0.99936453,2414.2,2414.1,6.79817965]
[1751421866547,0.99936453,2414.2,2414.1,4.62737965]
[1751421868254,2.24183453,2414.2,2413.9,4.62737965]
[1751421868453,0.82838,2414.0,2413.9,4.62737965]
[1751421868651,1.01422357,2414.0,2413.9,4.62737965]
[1751421868856,1.05616056,2414.0,2413.9,4.62737965]
[1751421870043,0.82844,2413.8,2413.7,6.07807965]
[1751421870244,0.22778056,2414.0,2413.6,4.62737965]
[1751421870245,0.82848,2413.7,2413.6,4.62737965]
[1751421870754,0.82858,2413.4,2413.3,0.32816515]
[1751421870957,0.22778056,2413.7,2413.3,4.62737965]
[1751421871148,0.82857,2413.5,2413.3,6.00967965]
[1751421871454,0.82857,2413.5,2413.3,7.17494553]
[1751421871956,0.22778056,2413.4,2413.3,7.17494553]
[1751421872454,0.22778056,2413.4,2413.3,47.97494553]
[1751421873453,0.22778056,2413.4,2413.3,47.63828965]
[1751421874054,0.22778056,2413.4,2413.3,47.97061757]
[1751421874556,1.05636056,2413.4,2413.3,46.80967965]
[1751421875152,0.22778056,2413.4,2413.3,46.80967965]
[1751421875455,0.22778056,2413.4,2413.3,47.63829965]
[1751421876046,1.05636056,2413.4,2413.3,46.80967965]
[1751421876245,1.05636056,2413.4,2413.3,47.63829965]
[1751421876458,1.05636056,2413.4,2413.3,46.80967965]
[1751421877558,1.05636056,2413.4,2413.3,42.1823]
[1751421879058,0.22778056,2413.4,2413.3,42.1823]
[1751421879653,0.22778056,2413.4,2413.3,43.01092]
[1751421880754,1.05636056,2413.4,2413.3,43.01092]
[1751421881361,0.22778056,2413.4,2413.3,43.01092]
[1751421881558,1.05636056,2413.4,2413.3,43.01092]
[1751421881757,1.05636056,2413.4,2413.3,42.1823]
[1751421881958,1.05636056,2413.4,2413.3,40.8]
[1751421882355,0.22778056,2413.4,2412.9,0.6934]
[1751421882562,0.82875,2412.9,2412.8,4.62737965]
[1751421882761,0.82875,2412.9,2412.8,45.42737965]
[1751421882960,1.05653056,2412.9,2412.8,45.42737965]
[1751421883758,0.22778056,2412.9,2412.8,46.25616965]
[1751421884360,1.05653056,2412.9,2412.8,45.42737965]
[1751421884758,1.05653056,2412.9,2412.7,0.8288]
[1751421884963,1.05653056,2412.9,2412.7,0.82882]
[1751421884964,0.22778056,2412.8,2412.7,0.82882]
[1751421885165,0.22778056,2412.8,2412.7,5.45619965]
[1751421885365,0.22778056,2412.8,2412.7,46.25619965]
[1751421891283,1.05657056,2412.8,2412.7,45.42737965]
[1751421891584,0.82882,2412.7,2412.6,0.7018]
[1751421891977,1.05660056,2412.7,2412.6,0.7018]
[1751421892280,1.05660056,2412.7,2412.6,1.53066]
[1751421893086,0.22778056,2412.7,2412.6,1.53066]
[1751421894184,0.22778056,2412.7,2412.6,5.53853252]
[1751421897385,1.05660056,2412.7,2412.6,4.70967252]
[1751421897686,1.05660056,2412.7,2412.6,4.00787252]
[1751421897883,0.82886,2412.6,2412.5,77.13711062]
[1751421898383,0.82886,2412.6,2412.5,73.1292381]
[1751421898584,0.82886,2412.6,2412.5,76.34757147]
[1751421899086,1.05664056,2412.6,2412.5,72.3003481]
[1751421899285,1.05664056,2412.6,2412.5,77.17696426]
[1751421899482,1.05664056,2412.6,2412.5,73.1292381]
[1751421899683,1.05664056,2412.6,2412.5,46.4423481]
[1751421899886,1.05664056,2412.6,2412.5,31.16427965]
[1751421900081,1.05664056,2412.6,2412.5,30.47337965]
[1751421900281,1.05664056,2412.6,2412.5,30.46937965]
[1751421900486,1.05664056,2412.6,2412.5,31.29826965]
[1751421900683,1.05664056,2412.6,2412.5,32.64376965]
[1751421900881,1.05664056,2412.6,2412.5,36.69503304]
[1751421901085,1.05664056,2412.6,2412.5,10.85303304]
[1751421901590,1.05664056,2412.6,2412.5,6.80176965]
[1751421903287,1.05664056,2412.6,2412.5,4.62737965]
[1751421904186,1.05664056,2412.6,2412.5,5.45626965]
[1751421904790,1.05664056,2412.6,2412.5,4.62737965]
[1751421905091,0.82889,2412.5,2412.4,29.86426339]
[1751421905291,0.82889,2412.5,2412.4,25.813]
[1751421905990,0.82892,2412.4,2412.3,46.87217965]
[1751421906189,0.82892,2412.4,2412.3,72.67817965]
[1751421907086,1.05670056,2412.4,2412.3,72.67817965]
[1751421907287,1.05670056,2412.4,2412.3,73.01146483]
[1751421907488,1.05670056,2412.4,2412.3,71.56666483]
[1751421907781,0.22778056,2412.4,2412.3,72.39562483]
[1751421907981,0.22778056,2412.4,2412.3,73.74812483]
[1751421908793,0.22778056,2412.4,2412.3,33.63862483]
[1751421909294,1.05670056,2412.4,2412.3,33.63862483]
[1751421909488,1.05670056,2412.4,2412.3,7.83262483]
[1751421909689,1.05670056,2412.4,2412.3,33.62262483]
[1751421910595,1.05670056,2412.4,2412.3,32.79366483]
[1751421910794,1.05670056,2412.4,2412.3,33.62262483]
[1751421910994,1.05670056,2412.4,2412.3,33.61262483]
[1751421911189,1.05670056,2412.4,2412.3,32.78366483]
[1751421911593,1.05670056,2412.4,2412.3,33.61262483]
[1751421912990,1.05670056,2412.4,2412.3,7.83262483]
[1751421913290,1.05670056,2412.4,2412.3,5.65116483]
[1751421913799,1.05670056,2412.4,2412.3,4.27061718]
[1751421914097,1.05670056,2412.4,2412.3,3.44165718]
[1751421914291,1.05670056,2412.4,2412.3,7.49292057]
[1751421914898,1.05670056,2412.4,2412.3,3.44165718]
[1751421915297,1.05670056,2412.4,2412.3,7.49292057]
[1751421915494,1.05670056,2412.4,2412.3,4.74176339]
[1751421915797,0.82896,2412.3,2412.2,6.46913539]
[1751421915997,1.05674056,2412.3,2412.2,6.46913539]
[1751421917395,1.05674056,2412.3,2412.2,2.417872]
[1751421918198,1.05674056,2412.3,2412.2,6.48320245]
[1751421918497,1.05674056,2412.3,2412.2,2.417872]
[1751421924604,0.82899,2412.2,2412.1,5.72456927]
[1751421924805,0.82903,2412.1,2412.0,6.55362927]
[1751421925004,1.05681056,2412.1,2412.0,6.55362927]
[1751421925704,1.05681056,2412.1,2412.0,8.97150127]
[1751421925906,0.22778056,2412.1,2412.0,8.97150127]
[1751421926907,0.22778056,2412.1,2412.0,9.29884535]
[1751421927107,0.22778056,2412.1,2412.0,10.73844535]
[1751421927410,1.05681056,2412.1,2412.0,10.73844535]
[1751421927708,1.05681056,2412.1,2412.0,5.01387608]
[1751421928407,1.05681056,2412.1,2412.0,4.686532]
[1751421930906,1.05681056,2412.1,2412.0,3.857472]
[1751421931109,1.05681056,2412.1,2412.0,2.417872]
[1751421931309,1.05681056,2412.1,2412.0,3.246932]
[1751421933014,1.05681056,2412.1,2412.0,2.417872]
[1751421935313,0.38342633,2412.1,2412.0,2.417872]
[1751421937819,0.82906,2412.0,2411.9,6.39502]
[1751421938312,0.82906,2412.0,2411.9,7.81122]
[1751421938512,0.82906,2412.0,2411.9,2.111]
[1751421938712,0.82906,2412.0,2411.9,1.4162]
[1751421940215,0.82906,2412.0,2411.9,5.48394007]
[1751421944814,0.82906,2412.0,2411.9,4.06774007]
[1751421945210,0.8291,2411.9,2411.8,4.79494007]
[1751421945419,0.8291,2411.9,2411.8,4.06774007]
[1751421946320,0.82913,2411.8,2411.7,4.75214007]
[1751421946519,0.82913,2411.8,2411.7,6.14164007]
[1751421949218,0.82913,2411.8,2411.7,6.79914007]
[1751421949418,0.82913,2411.8,2411.7,5.40964007]
[1751421949618,0.82913,2411.8,2411.7,7.82751207]
[1751421951822,0.82913,2411.8,2411.7,9.21391207]
[1751421953925,0.82913,2411.8,2411.7,4.06774007]
[1751421954120,0.82917,2411.7,2411.6,4.06774007]
[1751421954321,13.42047,2411.7,2411.6,4.06774007]
[1751421954921,0.82923,2411.5,2411.4,0.7194]
[1751421955531,0.8293,2411.3,2411.2,6.10034007]
[1751421956027,0.8293,2411.3,2411.2,4.06774007]
[1751421956927,0.82934,2411.2,2411.1,4.06774007]
[1751421957119,0.82937,2411.1,2411.0,5.42864007]
[1751421957722,0.82937,2411.1,2411.0,1.3609]
[1751421958524,0.82941,2411.0,2410.9,4.06774007]
[1751421958829,0.82944,2410.9,2410.8,5.46524007]
[1751421959729,0.82944,2410.9,2410.8,1.3975]
[1751421960519,0.33597735,2412.2,2410.8,1.3975]
[1751421960726,0.7228,2411.8,2411.4,3.247132]
[1751421960934,11.88,2412.1,2411.7,2.417872]
[1751421961229,12.70903,2412.1,2412.0,2.417872]
[1751421961428,0.82903,2412.1,2412.0,2.417872]
[1751421962028,1.4536,2412.7,2412.0,2.417872]
[1751421962229,0.82895,2412.4,2412.2,0.82898]
[1751421962420,0.82895,2412.4,2412.3,2.417872]
[1751421966937,0.82899,2412.2,2412.1,3.104372]
[1751421968238,0.82899,2412.3,2412.1,3.933402]
[1751421968439,0.82899,2412.2,2412.1,3.933402]
[1751421968634,0.82898,2412.3,2412.1,3.933402]
[1751421969540,0.82899,2412.2,2412.1,3.933402]
[1751421969941,0.82899,2412.2,2412.1,3.104372]
[1751421971544,0.82899,2412.2,2412.1,3.933402]
[1751421971843,0.82898,2412.3,2412.1,3.933402]
[1751421972043,0.82899,2412.2,2412.1,3.933402]
[1751421972440,0.82899,2412.2,2412.1,3.104372]
[1751421972946,0.82899,2412.2,2412.1,0.6865]
[1751421974341,0.82899,2412.2,2412.1,3.104372]
[1751421975644,0.82899,2412.2,2412.1,0.6865]
[1751421975945,0.8291,2411.9,2411.8,4.06774007]
[1751421978149,0.82913,2411.8,2411.7,7.20011207]
[1751421978551,0.82913,2411.8,2411.7,3.132372]
[1751421979250,0.82913,2411.8,2411.7,3.842972]
[1751421979647,0.82913,2411.8,2411.7,7.91071207]
[1751421979847,0.82913,2411.8,2411.7,3.842972]
[1751421980252,0.82913,2411.8,2411.7,5.227872]
[1751421980747,0.82913,2411.8,2411.7,1.4251]
[1751421980948,0.82913,2411.8,2411.7,0.7145]
[1751421981551,0.82913,2411.8,2411.7,3.132372]
[1751421981752,0.82913,2411.8,2411.7,4.505872]
[1751421988451,0.82913,2411.8,2411.7,8.57361207]
[1751421988752,11.869,2412.2,2411.7,4.505872]
[1751421988952,0.82906,2412.0,2411.9,2.417872]
[1751421989742,0.82906,2412.0,2411.9,3.749072]
[1751421991353,0.82906,2412.0,2411.9,1.3312]
[1751421996356,0.82913,2411.8,2411.7,7.20011207]
[1751421996556,0.82913,2411.8,2411.7,8.65151207]
[1751421997058,0.82913,2411.9,2411.7,9.48068207]
[1751421997257,0.82913,2411.9,2411.8,1.4514]
[1751421997459,0.82913,2411.9,2411.8,5.51914007]
[1751421998861,0.82913,2411.9,2411.8,6.17964007]
[1751422001062,0.82913,2411.9,2411.8,2.1119]
[1751422001465,0.82913,2411.9,2411.8,6.17964007]
[1751422006662,0.82913,2411.9,2411.8,4.72824007]
[1751422007362,0.82913,2411.9,2411.8,0.6605]
[1751422009262,0.82913,2411.9,2411.8,1.9763]
[1751422025080,0.82913,2411.9,2411.8,1.3158]
[1751422033682,27.47052,2412.2,2411.8,1.3158]
[1751422033982,0.82913,2411.9,2411.8,1.3158]
[1751422037188,0.82913,2411.8,2411.7,1.4305]
[1751422037486,0.82913,2411.8,2411.7,2.7545]
[1751422037686,0.82913,2411.8,2411.7,8.47517559]
[1751422043492,0.82913,2411.8,2411.7,2.7545]
[1751422043691,0.82917,2411.7,2411.6,5.72067559]
[1751422044590,0.8292,2411.6,2411.5,6.42177559]
[1751422045085,0.8292,2411.6,2411.5,6.43203024]
[1751422046087,0.8292,2411.6,2411.5,7.26126024]
[1751422046283,0.8292,2411.6,2411.5,8.63436024]
[1751422046482,0.8292,2411.6,2411.5,7.80513024]
[1751422046888,0.82913,2411.9,2411.5,12.80513024]
[1751422047083,25.39289,2412.3,2411.8,3.246982]
[1751422047284,0.82908,2412.0,2411.9,6.86844372]
[1751422047589,0.82908,2412.0,2411.9,2.7756]
[1751422047985,0.82908,2412.0,2411.9,9.33563024]
[1751422048189,2.417872,2412.7,2411.9,9.33563024]
[1751422048190,59.683,2412.9,2411.9,12.82253024]
[1751422048392,96.04992,2412.9,2412.6,2.417872]
[1751422048694,0.82879,2412.8,2412.7,0.7185]
[1751422049082,0.82879,2412.8,2412.7,4.81075005]
[1751422049579,0.82879,2412.8,2412.7,0.7185]
[1751422050190,26.21879,2412.8,2412.7,0.7185]
[1751422051295,0.82879,2412.8,2412.7,0.7185]
[1751422051592,26.21879,2412.8,2412.7,0.7185]
[1751422051894,0.82886,2412.6,2412.5,4.09225005]
[1751422052186,0.82892,2412.4,2412.3,5.73093024]
[1751422052391,0.82892,2412.4,2412.3,1.3279]
[1751422052983,0.82892,2412.4,2412.3,5.40711393]
[1751422053390,0.82892,2412.4,2412.3,1.3279]
[1751422053803,0.82896,2412.3,2412.2,4.07921393]
[1751422054106,3.933632,2412.3,2412.2,4.07921393]
[1751422054298,0.82899,2412.2,2412.1,4.07921393]
[1751422054498,0.82903,2412.1,2412.0,4.07921393]
[1751422054699,3.246902,2412.1,2412.0,4.07921393]
[1751422054898,15.048902,2412.1,2412.0,4.07921393]
[1751422055594,0.82906,2412.0,2411.9,4.07921393]
[1751422055802,0.8291,2411.9,2411.8,4.07921393]
[1751422056204,0.82913,2411.8,2411.7,4.07921393]
[1751422056400,0.33179047,2411.8,2411.7,4.07921393]
[1751422057001,0.82917,2411.7,2411.6,6.14171393]
[1751422060104,0.82917,2411.7,2411.6,4.76921393]
[1751422064301,3.247042,2411.7,2411.6,4.07921393]
[1751422064507,0.82923,2411.5,2411.4,4.80351393]
[1751422066709,0.82923,2411.5,2411.4,2.163]
[1751422078317,4.490872,2411.7,2411.2,4.07921393]
[1751422078517,0.8293,2411.3,2411.2,4.07921393]
[1751422078714,0.8293,2411.3,2411.2,1.4561]
[1751422078916,0.82934,2411.2,2411.1,5.44761393]
[1751422079121,0.82934,2411.2,2411.1,1.3684]
[1751422079317,0.82937,2411.1,2411.0,4.07921393]
[1751422079516,3.247242,2411.1,2411.0,4.07921393]
[1751422080012,0.82941,2411.0,2410.9,4.07921393]
[1751422080211,1.52251,2411.0,2410.9,4.07921393]
[1751422080415,0.82947,2410.8,2410.7,5.73093024]
[1751422081219,0.82951,2410.7,2410.6,7.10633024]
[1751422082118,3.247382,2410.7,2410.6,5.73093024]
[1751422082421,0.82954,2410.6,2410.5,5.73093024]
[1751422083616,0.82954,2410.7,2410.5,8.14880224]
[1751422083819,0.82954,2410.6,2410.5,10.22480224]
[1751422084215,0.82953,2410.7,2410.5,10.22480224]
[1751422084418,0.82954,2410.6,2410.5,10.22480224]
[1751422085223,0.82953,2410.7,2410.5,3.789572]
[1751422085423,0.82953,2410.7,2410.6,4.08455127]
[1751422085724,11.802,2411.3,2410.6,5.43625127]
[1751422085922,61.76314,2411.5,2411.1,2.417872]
[1751422086219,0.82934,2411.2,2411.1,2.417872]
[1751422088229,0.82934,2411.2,2411.1,3.763672]
[1751422088522,0.82934,2411.2,2411.1,4.444872]
[1751422088713,0.82932,2411.3,2411.1,3.763672]
[1751422088913,0.82932,2411.3,2411.2,3.099072]
[1751422091722,0.82932,2411.3,2411.2,2.417872]
[1751422091922,0.82932,2411.3,2411.2,3.079272]
[1751422092126,0.8293,2411.4,2411.2,3.079272]
[1751422092425,0.8293,2411.4,2411.3,1.355]
[1751422093022,0.8293,2411.4,2411.3,2.062]
[1751422093926,0.8293,2411.4,2411.3,6.14655127]
[1751422096728,0.8293,2411.4,2411.3,6.97585127]
[1751422097430,0.8293,2411.4,2411.3,6.14655127]
[1751422097827,0.82922,2411.6,2411.4,0.82927]
[1751422098019,2.79151,2412.1,2411.5,3.247102]
[1751422098224,3.38817,2412.3,2411.9,2.417872]
[1751422098225,28.14256,2412.3,2411.9,2.417872]
[1751422098526,0.82906,2412.0,2411.9,2.417872]
[1751422098830,0.8291,2411.9,2411.8,1.4007]
[1751422099027,0.8291,2411.9,2411.8,2.7917]
[1751422100124,0.82908,2412.0,2411.8,3.62083]
[1751422100324,0.82908,2412.0,2411.9,1.4393]
[1751422101331,0.82908,2412.0,2411.9,3.857172]
[1751422101725,0.8291,2411.9,2411.8,1.4007]
[1751422101929,0.82913,2411.8,2411.7,4.08455127]
[1751422102329,0.82917,2411.7,2411.6,4.08455127]
[1751422102523,2.417872,2412.1,2411.5,4.78015127]
[1751422102727,5.930692,2412.1,2411.6,6.50242327]
[1751422102928,0.82917,2411.7,2411.6,7.94692327]
[1751422103129,0.82917,2411.7,2411.6,2.417872]
[1751422103529,0.82917,2411.7,2411.6,6.49127283]
[1751422103928,0.82917,2411.7,2411.6,2.417872]
[1751422104128,0.82917,2411.7,2411.6,6.49050371]
[1751422105033,0.82915,2411.8,2411.6,3.247072]
[1751422105232,0.82915,2411.8,2411.7,4.73973538]
[1751422106129,0.82915,2411.8,2411.7,5.56890538]
[1751422106429,0.82908,2412.0,2411.9,0.82908]
[1751422106735,0.82905,2412.1,2411.9,7.31968738]
[1751422106933,0.82905,2412.1,2412.0,3.094272]
[1751422107330,0.82903,2412.1,2412.0,3.923322]
[1751422107636,0.82903,2412.1,2412.0,3.094272]
[1751422107933,0.82903,2412.1,2412.0,7.16700738]
[1751422108133,0.82903,2412.1,2412.0,3.094272]
[1751422109436,0.82913,2411.8,2411.7,4.73973538]
[1751422109937,0.82913,2411.8,2411.7,0.667]
[1751422112239,0.8292,2411.6,2411.5,4.07273538]
[1751422113442,0.82923,2411.5,2411.4,0.7123]
[1751422115439,0.82923,2411.5,2411.4,3.130172]
[1751422115945,0.82923,2411.5,2411.4,7.20290738]
[1751422116245,0.82923,2411.5,2411.4,3.130172]
[1751422116740,0.82923,2411.5,2411.2,6.56025024]
[1751422116944,0.82923,2411.5,2411.4,4.07202588]
[1751422117142,0.82927,2411.4,2411.3,4.07202588]
[1751422117342,0.8293,2411.3,2411.2,2.417872]
[1751422118947,0.8293,2411.3,2411.2,3.113972]
[1751422119340,0.8293,2411.3,2411.2,8.84490224]
[1751422120240,0.8293,2411.3,2411.2,10.28920224]
[1751422121044,0.82934,2411.2,2411.1,5.73093024]
[1751422121442,0.82937,2411.1,2411.0,8.14880224]
[1751422122244,0.82937,2411.1,2411.0,5.73093024]
[1751422126651,0.82941,2411.0,2410.9,3.777372]
[1751422129545,0.82941,2411.0,2410.9,4.606812]
[1751422129750,0.82941,2411.0,2410.9,3.777372]
[1751422130149,0.82941,2411.0,2410.9,5.145772]
[1751422130454,0.82939,2411.1,2411.0,0.8294]
[1751422130750,0.82939,2411.1,2411.0,4.615672]
[1751422131548,0.82939,2411.1,2411.0,3.786272]
[1751422131847,2.07306,2411.6,2411.0,8.786272]
[1751422132053,0.82923,2411.5,2411.4,2.417872]
[1751422133447,0.82927,2411.4,2411.3,0.6841]
[1751422134148,0.8293,2411.3,2411.2,2.417872]
[1751422134847,0.8293,2411.3,2411.2,3.832972]
[1751422135048,0.8293,2411.3,2411.2,7.91123432]
[1751422135347,0.8293,2411.3,2411.2,4.07826232]
[1751422137856,0.8293,2411.3,2411.2,6.49613432]
[1751422138056,0.8293,2411.3,2411.2,4.07826232]
[1751422138254,0.82937,2411.1,2411.0,7.83013024]
[1751422138454,0.82937,2411.1,2411.0,8.83290224]
[1751422141656,0.82937,2411.1,2411.0,3.101972]
[1751422141854,0.82937,2411.1,2411.0,8.8218645]
[1751422142255,0.82937,2411.1,2411.0,3.101972]
[1751422143756,0.82937,2411.1,2411.0,8.82674075]
[1751422149363,0.82937,2411.1,2411.0,3.101972]
[1751422149754,2.07305,2411.6,2411.0,3.101972]
[1751422149958,0.82927,2411.4,2411.3,2.417872]
[1751422150762,0.82927,2411.4,2411.3,3.771172]
[1751422150962,59.685,2412.3,2411.3,3.771172]
[1751422151168,0.82913,2411.8,2411.7,2.417872]
[1751422151364,0.82916,2411.7,2411.6,4.09175787]
[1751422151764,0.8292,2411.6,2411.5,4.09175787]
[1751422152364,0.8292,2411.6,2411.5,5.48685787]
[1751422152967,0.8292,2411.6,2411.5,7.90472987]
[1751422155157,0.8292,2411.6,2411.5,3.812972]
[1751422155662,0.8292,2411.6,2411.5,2.417872]
[1751422157067,0.8292,2411.6,2411.5,3.765872]
[1751422157262,0.8292,2411.6,2411.5,9.49384812]
[1751422162372,0.8292,2411.6,2411.5,8.14584812]
[1751422162571,0.8292,2411.6,2411.5,2.417872]
[1751422163973,0.8292,2411.6,2411.5,3.868472]
[1751422165473,0.82918,2411.7,2411.5,3.868472]
[1751422165773,0.82916,2411.7,2411.6,3.868472]
[1751422166074,61.75744,2412.3,2411.6,3.868472]
[1751422166275,0.82909,2412.0,2411.9,0.8291]
[1751422166572,0.82909,2412.0,2411.9,6.17373751]
[1751422167574,0.82909,2412.0,2411.9,8.59160951]
[1751422169670,2.07223,2412.5,2412.0,0.82906]
[1751422169877,0.82899,2412.2,2412.1,2.417872]
[1751422170080,0.82899,2412.2,2412.1,7.84420951]
[1751422170279,0.82899,2412.2,2412.1,8.52680951]
[1751422170479,0.82899,2412.2,2412.1,7.18410951]
[1751422170882,0.82899,2412.2,2412.1,0.6826]
[1751422171283,0.82899,2412.2,2412.1,4.76623751]
[1751422174584,0.82899,2412.2,2412.1,4.08363751]
[1751422174885,0.82903,2412.1,2412.0,4.08363751]
[1751422177691,0.82903,2412.1,2412.0,1.3974]
[1751422178186,0.82901,2412.2,2412.0,2.22645]
[1751422178387,0.82901,2412.2,2412.1,7.89096131]
[1751422179282,0.82901,2412.2,2412.1,5.47308931]
[1751422179593,0.82903,2412.1,2412.0,4.07568931]
[1751422179989,0.82906,2412.0,2411.9,4.77138931]
[1751422183292,0.82906,2412.0,2411.9,0.6957]
[1751422186489,0.8291,2411.9,2411.8,5.72797612]
[1751422188390,0.8291,2411.9,2411.8,8.14584812]
[1751422189596,0.8291,2411.9,2411.8,5.72797612]
[1751422189984,0.8291,2411.9,2411.8,8.14584812]
[1751422190194,0.8291,2411.9,2411.8,2.417872]
[1751422190994,0.8291,2411.9,2411.8,8.13404009]
[1751422191692,0.8291,2411.9,2411.8,2.417872]
[1751422192592,0.82913,2411.8,2411.7,1.373]
[1751422192797,0.82916,2411.7,2411.6,6.44286809]
[1751422195396,0.82916,2411.7,2411.6,0.7267]
[1751422195597,0.82916,2411.7,2411.6,6.44948039]
[1751422195798,0.82916,2411.7,2411.6,10.21695239]
[1751422196098,0.82916,2411.7,2411.6,4.494172]
[1751422201629,0.82916,2411.7,2411.6,10.21359451]
[1751422207202,0.8291,2411.9,2411.8,5.52356095]
[1751422207898,0.8291,2411.9,2411.8,1.4384]
[1751422208299,2.07252,2412.2,2411.6,6.44612251]
[1751422208300,0.82916,2411.7,2411.6,6.44612251]
[1751422208697,0.82916,2411.7,2411.6,7.88452251]
[1751422209203,0.82916,2411.7,2411.6,0.7267]
[1751422211004,0.8292,2411.6,2411.5,5.71942251]
[1751422211194,0.82927,2411.4,2411.3,6.40282251]
[1751422211898,0.82927,2411.4,2411.3,0.6834]
[1751422212098,0.6608,2411.8,2411.3,0.6834]
[1751422212306,0.82918,2411.7,2411.6,2.417872]
[1751422212502,0.82918,2411.7,2411.6,5.42422969]
[1751422213000,0.8292,2411.6,2411.5,4.08352969]
[1751422214308,0.82923,2411.5,2411.4,4.08352969]
[1751422215394,0.82927,2411.4,2411.3,4.08352969]
[1751422217508,0.8293,2411.3,2411.2,3.859472]
[1751422217706,0.8293,2411.3,2411.2,2.417872]
[1751422218509,0.82934,2411.2,2411.1,0.7147]
[1751422218697,0.82934,2411.2,2411.1,3.132572]
[1751422222509,0.82934,2411.2,2411.1,0.7147]
[1751422222905,0.82937,2411.1,2411.0,2.417872]
[1751422228508,0.82941,2411.0,2410.9,5.70774271]
[1751422229004,0.82944,2410.9,2410.8,6.43094271]
[1751422229201,0.82944,2410.9,2410.8,5.70774271]
[1751422229401,2.417872,2411.1,2410.1,10.60009361]
[1751422229402,0.82947,2410.8,2410.7,5.70774271]
[1751422231512,0.82951,2410.7,2410.6,5.70774271]
[1751422231909,0.82954,2410.6,2410.5,6.39524271]
[1751422232310,0.82954,2410.6,2410.5,0.6875]
[1751422232510,0.82954,2410.6,2410.5,4.76189656]
[1751422233215,0.82954,2410.6,2410.5,0.6875]
[1751422236617,0.82961,2410.4,2410.3,5.45119656]
[1751422236813,0.82961,2410.4,2410.3,6.17609656]
[1751422237114,0.82961,2410.4,2410.3,4.79929656]
[1751422237520,0.82961,2410.4,2410.3,0.7249]
[1751422239820,0.82968,2410.2,2410.1,4.07439656]
[1751422240020,0.82968,2410.2,2410.1,4.74849656]
[1751422240524,0.82968,2410.2,2410.1,4.07439656]
[1751422240725,0.82971,2410.1,2410.0,4.07439656]
[1751422240926,0.82975,2410.0,2409.9,4.07439656]
[1751422243223,0.82975,2410.0,2409.8,4.07439656]
[1751422243224,0.82978,2409.9,2409.8,4.07439656]
[1751422243423,1.54998,2409.9,2409.8,4.07439656]
[1751422243622,0.82982,2409.8,2409.7,4.07439656]
[1751422243923,1.51612,2409.8,2409.7,4.07439656]
[1751422244222,1.51612,2409.8,2409.4,6.43744271]
[1751422244223,0.82985,2409.7,2409.6,4.07439656]
[1751422245326,0.82989,2409.6,2409.5,4.07439656]
[1751422245828,0.82989,2409.6,2409.5,6.49226856]
[1751422246129,0.82989,2409.6,2409.5,4.469172]
[1751422246526,0.82989,2409.6,2409.5,6.11752268]
[1751422246827,0.82989,2409.6,2409.5,4.06622268]
[1751422247031,3.247762,2409.6,2409.5,4.06622268]
[1751422247724,8.247762,2409.6,2409.5,3.20444268]
[1751422248030,0.83006,2409.1,2409.0,2.7563]
[1751422251631,0.83006,2409.1,2409.0,0.7302]
[1751422251822,2.417872,2409.2,2408.7,8.12561471]
[1751422252130,0.83016,2408.8,2408.7,2.417872]
[1751422252524,0.83016,2408.8,2408.7,3.846772]
[1751422253824,0.83016,2408.8,2408.7,1.4289]
[1751422255231,0.83016,2408.8,2408.7,3.846772]
[1751422257728,0.83016,2408.8,2408.7,1.4289]
[1751422257931,0.83016,2408.8,2408.7,3.846772]
[1751422258837,0.83016,2408.8,2408.7,1.4289]
[1751422260933,0.83023,2408.6,2408.5,0.7234]
[1751422261133,0.83023,2408.6,2408.5,2.056]
[1751422263931,0.83027,2408.5,2408.4,0.7152]
[1751422265039,0.83037,2408.2,2408.1,2.0962]
[1751422265230,0.83037,2408.2,2408.1,2.1412]
[1751422265430,0.83037,2408.2,2408.1,2.8267]
[1751422266031,0.83033,2408.4,2408.1,3.65709]
[1751422266235,0.83037,2408.2,2408.1,0.7141]
[1751422268531,0.83037,2408.2,2408.1,2.149]
[1751422270637,0.83037,2408.2,2408.1,0.7141]
[1751422270839,0.83047,2407.9,2407.8,2.417872]
[1751422271039,0.83051,2407.8,2407.7,2.0059]
[1751422272138,0.83051,2407.8,2407.7,0.6813]
[1751422272539,0.8305,2407.9,2407.7,1.51182]
[1751422272731,2.07577,2408.4,2407.8,4.572962]
[1751422272932,0.83037,2408.2,2408.1,2.417872]
[1751422273339,0.8304,2408.1,2408.0,3.141672]
[1751422274334,0.33393112,2410.0,2408.0,10.559544]
[1751422274536,2.07479,2409.6,2408.1,2.07597]
[1751422274837,0.8301,2409.0,2408.9,2.417872]
[1751422275034,0.83016,2408.8,2408.7,2.417872]